Cogmind - Beta 15 @@@ ROGUE MODE // 2025.07.11 @ 17:46:35 Player: 0Z-4NL Result: Destroyed by G-73 Enforcer with Heavy Laser Performance ------------- Evolutions (9) 4500 Regions Visited (14) 2800 Robots Destroyed (50) 250 Value Destroyed (1460) 1460 Prototype IDs (52) 1040 Alien Tech Used (0) 0 Bonus (5035) 5035 TOTAL SCORE: 15085 Bonus ------- Sticky Parts 4000 Follower Combat Kills 235 Entered DSFs 500 Aligned with FarCom 300 Cogmind --------- Core Integrity 0/1600 Matter 300/300 Energy 99/100 System Corruption 2% Temperature Cool (9) Movement Core (50) Location -1/Access Parts ------- > --- POWER (2) -------- (None) > --- PROPULSION (9) --- (None) > --- UTILITY (12) ----- System Shield Improved System Shield > --- WEAPON (2) ------- (None) > --- INVENTORY (5) ---- Impulse Thruster Impulse Thruster Advanced Coolant Injector Enhanced Optical Array Enhanced Hardcell Cannon Peak State ------------ > --- POWER ------------ Light Nuclear Core Light Quantum Reactor > --- PROPULSION ------- Cooled VTOL Module Cooled VTOL Module Impulse Thruster Impulse Thruster Field Propulsion Array Field Propulsion Array Cooled Q-thruster > --- UTILITY ---------- Medium Storage Unit Advanced Transmission Jammer ECM Suite Layered Light Armor Plating Improved Hacking Suite Improved Hacking Suite Improved Hacking Suite Improved Hacking Suite System Shield Improved System Shield Improved System Shield Advanced System Shield > --- WEAPON ----------- Katana > --- INVENTORY -------- Light Antimatter Reactor Impulse Thruster Impulse Thruster Advanced Coolant Injector Advanced Energy Well Enhanced Optical Array [Rating: 133] Favorites ----------- Power Light Deuterium Engine Engine Light Deuterium Engine Power Core Light Nuclear Core Reactor Light Antimatter Reactor Propulsion Cesium-ion Thruster Treads Light Treads Hover Unit Backup Propulsion I Flight Unit Cesium-ion Thruster Utility Improved System Shield Device ECM Suite Storage Medium Storage Unit Hackware Improved System Shield Protection Backup Plating I Weapon Katana Ballistic Gun Light Assault Rifle Launcher Long-range Missile Launcher Slashing Weapon Katana Build | -11 -10 -10 -10 -9 -8 -8 -7 -6 -5 -4 -3 -3 -2 -1 ------- Run | Yrd Mat Min Exi Min Mat Sto Fac Fac Fac Fac Res DSF Res Acc Slots Evolved 18 | . . . . . 4 . 2 2 2 2 2 . 2 2 Power 1 | . . . . . . . . . . 1 . . . . Propulsion 7 | . . . . . 3 . 1 1 1 . 1 . . . Utility 10 | . . . . . 1 . 1 1 1 1 1 . 2 2 Weapon . | . . . . . . . . . . . . . . . Parts Attached 39 | 1 2 . 1 1 3 2 2 4 4 4 1 1 2 11 Power 7 | . . . 1 . . 1 . . . 1 . . . 4 Engine 2 | . . . 1 . . 1 . . . . . . . . Core 1 | . . . . . . . . . . 1 . . . . Reactor 4 | . . . . . . . . . . . . . . 4 Propulsion 13 | . 1 . . . 1 1 1 1 2 . 1 . . 5 Treads 1 | . 1 . . . . . . . . . . . . . Leg . | . . . . . . . . . . . . . . . Wheel . | . . . . . . . . . . . . . . . Hover . | . . . . . . . . . . . . . . . Flight 12 | . . . . . 1 1 1 1 2 . 1 . . 5 Utility 14 | . . . . 1 1 . 1 2 2 2 . 1 2 2 Device 2 | . . . . . 1 . . . . 1 . . . . Storage 1 | . . . . . . . 1 . . . . . . . Processor . | . . . . . . . . . . . . . . . Hackware 9 | . . . . . . . . 2 1 1 . 1 2 2 Protection 2 | . . . . 1 . . . . 1 . . . . . Artifact . | . . . . . . . . . . . . . . . Weapon 5 | 1 1 . . . 1 . . 1 . 1 . . . . Energy Gun . | . . . . . . . . . . . . . . . Energy Cannon . | . . . . . . . . . . . . . . . Ballistic Gun 2 | 1 1 . . . . . . . . . . . . . Ballistic Cannon . | . . . . . . . . . . . . . . . Launcher 2 | . . . . . . . . 1 . 1 . . . . Special Weapon . | . . . . . . . . . . . . . . . Impact Weapon . | . . . . . . . . . . . . . . . Slashing Weapon 1 | . . . . . 1 . . . . . . . . . Piercing Weapon . | . . . . . . . . . . . . . . . Special Melee Weapon . | . . . . . . . . . . . . . . . Unidentified Prototypes 2 | . . . . . . . 1 . . . . . . 1 Parts Lost 33 | . . 3 . . . . . . 2 . . . 2 26 Power 7 | . . 1 . . . . . . . . . . 1 5 Propulsion 12 | . . 1 . . . . . . . . . . 1 10 Utility 13 | . . 1 . . . . . . 2 . . . . 10 Weapon 1 | . . . . . . . . . . . . . . 1 Highest Loss Streak 24 | . . 3 . . . . . . 1 . . . 2 24 To Critical Strikes . | . . . . . . . . . . . . . . . Average Backups 6 | 2 4 5 3 2 2 4 7 9 8 8 9 6 6 6 Power . | . 1 1 1 . . . 1 1 1 1 2 2 2 1 Propulsion 1 | 2 2 1 . 1 . . 1 1 1 2 2 1 1 3 Utility 3 | . 1 2 1 1 1 3 3 6 5 5 5 3 2 1 Weapon . | . . 1 . . . . . . 1 . . . . . Tool/Special . | . . . . . . . . . . . . . . . Unused Backups 30 | . 2 . 5 . 1 . 4 3 2 2 1 4 . 6 Power 4 | . . . 2 . . . 1 1 . . . . . . Propulsion 6 | . 1 . 1 . . . 1 . . . . 1 . 2 Utility 16 | . 1 . 1 . 1 . . 2 2 2 1 3 . 3 Weapon 4 | . . . 1 . . . 2 . . . . . . 1 Tool/Special . | . . . . . . . . . . . . . . . Average Slot Usage (%) 73 | . 63 87 64 83 66 70 70 67 71 77 76 81 84 77 Engine 6 | . 8 8 7 14 9 9 7 6 5 5 4 4 4 . Core 1 | . . . . . . . . . . 5 4 4 4 3 Treads 3 | . 10 14 14 14 4 . . . . . . . . . Flight 15 | . . . . . 9 16 19 18 24 26 23 28 26 19 Device 4 | . . . . . 8 9 7 1 1 5 9 9 8 7 Storage 2 | . . . . . . . 4 6 5 5 4 4 4 3 Hackware 7 | . . . . . . . . 8 11 14 14 15 23 28 Protection 13 | . 17 24 14 26 18 18 15 13 8 5 4 4 4 3 Ballistic Gun 8 | . 16 28 28 28 13 9 7 1 . . . . . . Launcher 2 | . . . . . . . . 4 5 4 4 4 4 3 Slashing Weapon 4 | . . . . . 4 9 7 6 5 5 4 4 4 3 Peak Build Rating 133 | 1 7 7 8 9 41 46 55 64 76 93 94 99 109 133 Average Rating 55 | . 4 6 6 8 39 43 51 59 69 85 93 95 107 114 On Entrance 46 | . 1 7 4 8 9 41 46 54 62 76 93 94 99 103 Naked Turns . | . . . . . . . . . . . . . . . Heaviest Build 44 | 2 6 6 9 12 14 14 24 28 30 37 37 37 37 44 Greatest Support 83 | 3 6 6 3 3 50 55 55 60 70 74 74 78 78 83 Greatest Overweight (x) 3 | . . 1 2 3 . . . . . . . 2 . 3 Average Overweight (x) . | . . . 1 2 . . . . . . . . . . Largest Inventory Capacity 10 | 5 5 5 5 5 5 5 10 10 10 10 10 10 10 10 Average Capacity 7 | 5 5 5 5 5 5 5 8 10 10 10 10 10 10 9 Most Carried 10 | 5 5 5 5 5 5 5 10 10 10 10 10 8 9 10 Average Carried 6 | 3 4 5 4 4 2 4 7 9 8 9 9 7 7 8 Final Capacity 10 | 5 5 5 5 5 5 5 10 10 10 10 10 10 10 5 Final Carried 10 | 4 5 5 5 5 5 4 10 10 10 10 8 8 7 5 Class Distribution -------------------- 55% | Mutant 18% | Hacker-Sprinter 13% | Wizard-Sprinter 9% | Hacker-Mutant 3% | Commander-Mutant Dominant Class ---------------- Mutant | -10/Materials Mutant | -10/Mines Mutant | -10/Exiles Mutant | -9/Mines Mutant | -8/Materials Mutant | -8/Storage Mutant | -7/Factory Mutant | -6/Factory Hacker-Sprinter | -5/Factory Hacker-Sprinter | -4/Factory Hacker-Sprinter | -3/Research Hacker-Sprinter | -3/DSF Wizard-Sprinter | -2/Research Wizard-Sprinter | -1/Access Resources | -11 -10 -10 -10 -9 -8 -8 -7 -6 -5 -4 -3 -3 -2 -1 ----------- Run | Yrd Mat Min Exi Min Mat Sto Fac Fac Fac Fac Res DSF Res Acc Matter Collected 960 | 210 25 58 . 20 66 11 30 149 141 100 . . 95 55 Remotely . | . . . . . . . . . . . . . . . Salvage Created 1642 | . 33 . . . 160 323 230 252 263 333 . . . 48 Parts 96 | . 5 . . . 7 18 14 18 12 20 . . . 2 Haulers Intercepted 6 | . . . . . 1 . 2 1 1 1 . . . . Recyclers Shooed 1 | . . . . . . . 1 . . . . . . . Parts Field Recycled . | . . . . . . . . . . . . . . . Retrieved Matter . | . . . . . . . . . . . . . . . Parts Self-Destructed . | . . . . . . . . . . . . . . . Prevented . | . . . . . . . . . . . . . . . Kills | -11 -10 -10 -10 -9 -8 -8 -7 -6 -5 -4 -3 -3 -2 -1 ------- Run | Yrd Mat Min Exi Min Mat Sto Fac Fac Fac Fac Res DSF Res Acc Combat Hostiles Destroyed 28 | . 2 . . . 2 5 . 6 8 5 . . . . Melee 6 | . . . . . . 5 . . 1 . . . . . Guns 4 | . 2 . . . 2 . . . . . . . . . AOE 18 | . . . . . . . . 6 7 5 . . . . Classes Destroyed 11 | . 1 . . . 3 2 2 1 2 . . . . . Worker 1 | . . . . . . . . . 1 . . . . . Builder 1 | . . . . . . . . 1 . . . . . . Hauler 6 | . . . . . 1 . 2 1 1 1 . . . . Recycler 2 | . . . . . . . 1 . . 1 . . . . Operator 7 | . . . . . . 2 1 1 2 1 . . . . Watcher 5 | . . . . . . . 1 2 . 1 . . . 1 Swarmer 16 | . 2 . . . . . . 4 5 5 . . . . Grunt 7 | . . . . . 1 3 . 2 1 . . . . . Duelist 1 | . . . . . 1 . . . . . . . . . Sentry 2 | . . . . . . 2 . . . . . . . . Programmer 2 | . . . . . . . . . 2 . . . . . Best Kill Streak 6 | . 2 . . . 2 3 2 5 6 5 . . . 1 Combat Bots Only 5 | . 2 . . . 2 2 . 4 5 5 . . . . Max Kills in Single Turn 4 | . 1 . . . 1 1 1 2 4 4 . . . 1 Gunslinging . | . . . . . . . . . . . . . . . Exploded 4 | . . . . . . . . 2 4 4 . . . . Melee 1 | . . . . . . 1 . . 1 . . . . . Uniques/NPCs Destroyed . | . . . . . . . . . . . . . . . Combat | -11 -10 -10 -10 -9 -8 -8 -7 -6 -5 -4 -3 -3 -2 -1 -------- Run | Yrd Mat Min Exi Min Mat Sto Fac Fac Fac Fac Res DSF Res Acc Hostile Shots Fired 416 | . 4 11 . . 4 20 4 27 23 7 . 3 11 302 Missed 192 | . 2 4 . . 2 9 1 16 9 4 . 2 6 137 Hits 224 | . 2 7 . . 2 11 3 11 14 3 . 1 5 165 Melee 2 | . . . . . . . . . . . . . 2 . Projectile 222 | . 2 7 . . 2 11 3 11 14 3 . 1 3 165 AOE 8 | . . 4 . . . . . . 1 . . 1 1 1 Critical Strikes 6 | . . . . . . 1 . . . . . . 1 4 Damage Taken 4865 | . 13 195 . . 30 178 39 145 343 111 . 124 143 3544 Core 1700 | . . . . . . 48 . 17 20 . . 6 . 1609 Absorbed by Shields 8 | . . . . . . . 8 . . . . . . . Regen/Repaired (Parts) 142 | . . . . . 57 . . 22 . 38 . . . 25 Core Remaining (%) 98 | 100 . . . 100 . 91 100 98 98 100 . 99 100 . Volleys Fired 37 | . 4 . . . 9 1 . 9 11 3 . . . . Largest 2 | . 1 . . . 2 1 . 1 1 1 . . . . Hottest 43 | . 20 . . . 40 20 . 39 39 43 . . . . Shots Fired 46 | . 4 . . . 18 1 . 9 11 3 . . . . Gun 23 | . 4 . . . 18 1 . . . . . . . . Cannon . | . . . . . . . . . . . . . . . Launcher 23 | . . . . . . . . 9 11 3 . . . . Special . | . . . . . . . . . . . . . . . Kinetic 23 | . 4 . . . 18 1 . . . . . . . . Thermal . | . . . . . . . . . . . . . . . Explosive 23 | . . . . . . . . 9 11 3 . . . . Electromagnetic . | . . . . . . . . . . . . . . . Robot Hit Streak 6 | . 1 . . . 5 . . 6 . 1 . . . . Robot Miss Streak 2 | . 1 . . . 1 . . 2 1 . . . . . Penetration Max . | . . . . . . . . . . . . . . . Secondary Targets . | . . . . . . . . . . . . . . . Shots Hit Robots 89 | . 2 . . . 13 11 8 23 11 18 . . . 3 Core Hits 71 | . 2 . . . 8 8 4 19 17 11 . . . 2 Critical Kills . | . . . . . . . . . . . . . . . Critical Parts Destroyed . | . . . . . . . . . . . . . . . Critical Strikes 2 | . . . . . . . . . 1 1 . . . . Sever 2 | . . . . . . . . . 1 1 . . . . Melee Attacks 233 | . . . . . 15 29 31 42 28 42 . 3 16 27 Impact . | . . . . . . . . . . . . . . . Slashing 233 | . . . . . 15 29 31 42 28 42 . 3 16 27 Piercing . | . . . . . . . . . . . . . . . Sneak Attacks 14 | . . . . . 1 1 4 2 2 4 . . . . Combat Hostiles . | . . . . . . . . . . . . . . . Follow-up Attacks . | . . . . . . . . . . . . . . . Damage Inflicted 5795 | . 26 . . . 212 452 428 1640 1690 1220 . . . 127 Guns 170 | . 26 . . . 144 . . . . . . . . . Cannons . | . . . . . . . . . . . . . . . Explosions 2572 | . . . . . . . . 858 1206 508 . . . . Melee 3052 | . . . . . 68 452 428 782 484 712 . . . 126 Ramming 1 | . . . . . . . . . . . . . . 1 Kinetic 170 | . 26 . . . 144 . . . . . . . . . Thermal 135 | . . . . . . . . . 135 . . . . . Explosive 2424 | . . . . . . . . 845 1071 508 . . . . Electromagnetic 13 | . . . . . . . . 13 . . . . . . Impact . | . . . . . . . . . . . . . . . Slashing 3052 | . . . . . 68 452 428 782 484 712 . . . 126 Piercing . | . . . . . . . . . . . . . . . Highest Corruption 2 | . . . . . . . . . 1 . . . . 2 Average Corruption 1 | . . . . . . . . . 1 . . . . 1 Corruption Purged . | . . . . . . . . . . . . . . . Corruption Blocked . | . . . . . . . . . . . . . . . Effects 5 | . . . . . . . . . 3 . . . . 2 Message Errors 2 | . . . . . . . . . 2 . . . . . Matter Fused 1 | . . . . . . . . . . . . . . 1 Heat Flow Errors 1 | . . . . . . . . . 1 . . . . . Parts Rejected 1 | . . . . . . . . . . . . . . 1 Overload Shots . | . . . . . . . . . . . . . . . Overflow Damage 481 | . . . . . . 47 81 117 173 63 . . . . Projectiles . | . . . . . . . . . . . . . . . Explosions 122 | . . . . . . . . 14 90 18 . . . . Melee 359 | . . . . . . 47 81 103 83 45 . . . . Knockbacks . | . . . . . . . . . . . . . . . Impact . | . . . . . . . . . . . . . . . Kinetic . | . . . . . . . . . . . . . . . Secondary . | . . . . . . . . . . . . . . . Self-Inflicted Damage . | . . . . . . . . . . . . . . . Shots . | . . . . . . . . . . . . . . . Rammed 1 | . . . . . . . . . . . . . . 1 Targets Rammed 1 | . . . . . . . . . . . . . . 1 Kicked . | . . . . . . . . . . . . . . . Crushed . | . . . . . . . . . . . . . . . Highest Temperature 403 | . . . . . . 13 403 13 209 105 6 76 99 139 Average Temperature 42 | . . . . . . 5 196 8 75 32 3 40 28 36 Received Heat Transfer 498 | . . . . . 9 99 . 54 12 . . . 9 315 Effects 2 | . . . . . . . 2 . . . . . . . Energy Bleed 1 | . . . . . . . 1 . . . . . . . Interference 1 | . . . . . . . 1 . . . . . . . Siege Activations . | . . . . . . . . . . . . . . . Martial Activations . | . . . . . . . . . . . . . . . Shielding Activations . | . . . . . . . . . . . . . . . Robots Disrupted . | . . . . . . . . . . . . . . . Combat Hostiles . | . . . . . . . . . . . . . . . Robots Corrupted . | . . . . . . . . . . . . . . . Combat Hostiles . | . . . . . . . . . . . . . . . Parts Fried . | . . . . . . . . . . . . . . . Impact Corruptions . | . . . . . . . . . . . . . . . Robots Melted . | . . . . . . . . . . . . . . . Combat Hostiles . | . . . . . . . . . . . . . . . Parts Melted 1 | . . . . . . . . . 1 . . . . . Heat Transferred 100 | . . . . . . . . . 100 . . . . . Parts Sabotaged . | . . . . . . . . . . . . . . . Parts Stolen . | . . . . . . . . . . . . . . . Parts Stripped . | . . . . . . . . . . . . . . . Power Chain Reactions . | . . . . . . . . . . . . . . . Alert | -11 -10 -10 -10 -9 -8 -8 -7 -6 -5 -4 -3 -3 -2 -1 ------- Run | Yrd Mat Min Exi Min Mat Sto Fac Fac Fac Fac Res DSF Res Acc Maximum Alert Level 1 | . . . . . . 1 . . 1 1 . . . . Low Security (%) 88 | 100 100 100 . 100 100 80 100 100 22 83 100 100 100 100 Level 1 11 | . . . . . . 19 . . 77 16 . . . . Level 2 . | . . . . . . . . . . . . . . . Level 3 . | . . . . . . . . . . . . . . . Level 4 . | . . . . . . . . . . . . . . . Level 5 . | . . . . . . . . . . . . . . . High Security . | . . . . . . . . . . . . . . . Max Security . | . . . . . . . . . . . . . . . Peak Influence 372 | . 30 11 . . 106 371 75 128 372 310 148 111 84 25 Initial 165 | . . 11 . . . . 74 . 58 165 148 111 62 20 Average 70 | . 6 3 . . 36 110 19 34 263 170 148 111 65 4 Influence Increases 2418 | . 45 . . . 198 555 112 397 538 341 . . 102 130 Destroy 0b10 Robot/C 760 | . 40 . . . 100 240 . 120 160 100 . . . . Destroy 0b10 Robot/NC 105 | . . . . . 5 10 25 20 20 20 . . . 5 Destroy Leader 172 | . . . . . 32 80 6 16 22 14 . . . 2 Allied During Kill 178 | . . . . . 19 159 . . . . . . . . Successful Hack 362 | . 5 . . . 13 24 39 89 64 38 . . 48 42 Disable Machine 120 | . . . . . . 15 15 30 45 15 . . . . Destroy Structure 436 | . . . . . 14 12 12 77 152 94 . . 39 36 Partial Spotted 90 | . . . . . 15 15 15 . . 15 . . 15 15 Lose Combat Pursuer 195 | . . . . . . . . 45 75 45 . . . 30 Influence Decreases 2418 | . 15 30 . . 198 391 276 278 319 395 136 37 179 164 Entered New Map 579 | . . 19 . . . . 90 . 61 173 136 37 49 14 Time Decay 1482 | . 15 11 . . 158 171 186 268 238 222 . . 100 113 Lost Part 77 | . . . . . . . . . 20 . . . 20 37 Lost Ally 280 | . . . . . 40 220 . 10 . . . . 10 . Squads Dispatched 32 | . 1 . . . . 4 3 6 3 3 . 1 4 7 Investigation 5 | . . . . . . . . 2 1 . . . . 2 Extermination 10 | . . . . . . . 1 2 2 2 . . 1 2 Reinforcement 14 | . 1 . . . . 1 2 2 . 1 . 1 3 3 Assault 2 | . . . . . . 2 . . . . . . . . Garrison 1 | . . . . . . 1 . . . . . . . . Intercept . | . . . . . . . . . . . . . . . Searches Triggered . | . . . . . . . . . . . . . . . Construction Impeded 2 | . . . . . . . . 1 . . . . . 1 Haulers Reinforced 1 | . . . . . . . . 1 . . . . . . Active Scanning Responses . | . . . . . . . . . . . . . . . Cargo Convoy Interrupts . | . . . . . . . . . . . . . . . Stealth | -11 -10 -10 -10 -9 -8 -8 -7 -6 -5 -4 -3 -3 -2 -1 --------- Run | Yrd Mat Min Exi Min Mat Sto Fac Fac Fac Fac Res DSF Res Acc Distress Signals 9 | . . . . . . 1 1 . 1 1 . . 1 4 Communications Jammed 3 | . . . . . . . . . . . . . 1 2 Distress Signals 3 | . . . . . . . . . . . . . 1 2 Times Spotted 133 | . 3 9 . . 6 14 10 15 17 6 . 4 8 41 Peak Tracking Total 19 | . 3 9 . . 2 11 4 4 6 5 . 4 5 19 Tactical Retreats 17 | . . 1 . . . . 3 1 3 2 . . 1 6 Traps | -11 -10 -10 -10 -9 -8 -8 -7 -6 -5 -4 -3 -3 -2 -1 ------- Run | Yrd Mat Min Exi Min Mat Sto Fac Fac Fac Fac Res DSF Res Acc Traps Triggered 7 | . . . . . . . 4 . 1 . . . . 2 Indirectly . | . . . . . . . . . . . . . . . Trap Hack Attempts . | . . . . . . . . . . . . . . . Triggered . | . . . . . . . . . . . . . . . Disarmed . | . . . . . . . . . . . . . . . Reprogrammed . | . . . . . . . . . . . . . . . Reused . | . . . . . . . . . . . . . . . Traps Extracted . | . . . . . . . . . . . . . . . Installed . | . . . . . . . . . . . . . . . Triggered . | . . . . . . . . . . . . . . . Machines | -11 -10 -10 -10 -9 -8 -8 -7 -6 -5 -4 -3 -3 -2 -1 ---------- Run | Yrd Mat Min Exi Min Mat Sto Fac Fac Fac Fac Res DSF Res Acc Machines Disabled 8 | . . . . . . 1 1 2 3 1 . . . . Max in Single Turn 1 | . . . . . . 1 1 1 1 1 . . . . Garrison Access 4 | . . . . . . . . 1 . 1 . . . 2 Machines Repaired . | . . . . . . . . . . . . . . . Machines Dismantled . | . . . . . . . . . . . . . . . Machines Sabotaged . | . . . . . . . . . . . . . . . Overloaded Fab Kills . | . . . . . . . . . . . . . . . Hacking | -11 -10 -10 -10 -9 -8 -8 -7 -6 -5 -4 -3 -3 -2 -1 --------- Run | Yrd Mat Min Exi Min Mat Sto Fac Fac Fac Fac Res DSF Res Acc Machines Accessed 67 | . 2 . 2 . 3 7 8 13 5 11 1 . 5 10 Terminals 43 | . 1 . . . 2 6 5 8 3 6 1 . 5 6 Fabricators 6 | . . . . . . . 1 1 1 2 . . . 1 Repair Stations 10 | . 1 . . . 1 1 . 3 1 2 . . . 1 Recycling Units . | . . . . . . . . . . . . . . . Scanalyzers 2 | . . . . . . . 2 . . . . . . . Garrison Access 4 | . . . . . . . . 1 . 1 . . . 2 Total Hacks 240 | . 6 . 2 . 11 13 20 49 22 53 1 . 23 40 Successful 127 | . 2 . 2 . 8 9 11 23 10 22 1 . 13 26 Failed 113 | . 4 . . . 3 4 9 26 12 31 . . 10 14 Catastrophic 13 | . . . . . . . 2 4 1 3 . . . 3 Database Lockouts . | . . . . . . . . . . . . . . . Manual 82 | . 5 . 1 . 1 2 7 14 5 18 . . 10 19 Terminals 172 | . 5 . . . 7 11 10 29 12 41 1 . 23 33 Fabricators 18 | . . . . . . . 3 3 7 4 . . . 1 Repair Stations 32 | . 1 . . . 4 2 . 13 3 7 . . . 2 Recycling Units . | . . . . . . . . . . . . . . . Scanalyzers 7 | . . . . . . . 7 . . . . . . . Garrison Access 9 | . . . . . . . . 4 . 1 . . . 4 Terminal Hacks 59 | . . . 2 . 3 6 3 5 2 13 1 . 10 14 Record 1 | . . . 1 . . . . . . . . . . . Prototype ID Bank 9 | . . . . . 1 . . . . 3 . . 2 3 Open Door 5 | . . . . . . 5 . . . . . . . . Open DSF 1 | . . . . . . . . . . . 1 . . . Level Access Points 5 | . . . . . . . 1 1 . 1 . . 1 1 Branch Access Points 2 | . . . . . 1 . . 1 . . . . . . Machine Index 1 | . . . . . . . . . . . . . . 1 Terminal Index 6 | . . . . . 1 . 1 . . 2 . . 1 1 Repair Station Index 1 | . . . . . . . . 1 . . . . . . Alert Level 3 | . . . . . . . . . . 2 . . . 1 Locate Traps 6 | . . . . . . . 1 . . 2 . . 3 . Extermination Status 1 | . . . . . . . . . . . . . . 1 Recall Investigation 1 | . . . . . . . . . . . . . . 1 Recall Extermination 1 | . . . . . . . . . . . . . . 1 Hauler Manifests 4 | . . . . . . 1 . 1 1 1 . . . . Registered Components 2 | . . . . . . . . . 1 . . . . 1 Registered Prototypes 1 | . . . . . . . . . . . . . . 1 Zone Layout 8 | . . . . . . . . 1 . 2 . . 3 2 Proto ID Catalog 1 | . . . 1 . . . . . . . . . . . Fabricator Hacks 8 | . . . . . . . . 2 3 2 . . . 1 Network Status 4 | . . . . . . . . 1 1 1 . . . 1 Load Schematic 3 | . . . . . . . . 1 1 1 . . . . Build 1 | . . . . . . . . . 1 . . . . . Repair Station Hacks 23 | . 1 . . . 4 2 . 9 2 3 . . . 2 Scan Component 13 | . . . . . 2 1 . 6 1 2 . . . 1 Repair 9 | . . . . . 2 1 . 3 1 1 . . . 1 Refit 1 | . 1 . . . . . . . . . . . . . Recycling Unit Hacks . | . . . . . . . . . . . . . . . Scanalyzer 6 | . . . . . . . 6 . . . . . . . Insert Component 3 | . . . . . . . 3 . . . . . . . Analyze 3 | . . . . . . . 3 . . . . . . . Garrison Access Hacks 4 | . . . . . . . . 1 . 1 . . . 2 Seal Access 4 | . . . . . . . . 1 . 1 . . . 2 Unauthorized Hacks 27 | . 1 . . . 1 1 2 6 3 3 . . 3 7 Terminals 25 | . 1 . . . 1 1 2 5 2 3 . . 3 7 Assimilate 4 | . . . . . . . . 2 . . . . 1 1 Botnet 17 | . 1 . . . 1 1 2 3 1 2 . . 2 4 Disrupt 1 | . . . . . . . . . . . . . . 1 Operators 3 | . . . . . . . . . 1 1 . . . 1 Fabricators 2 | . . . . . . . . 1 1 . . . . . Prioritize 1 | . . . . . . . . . 1 . . . . . Recompile 1 | . . . . . . . . 1 . . . . . . Repair Stations . | . . . . . . . . . . . . . . . Recycling Units . | . . . . . . . . . . . . . . . Scanalyzers . | . . . . . . . . . . . . . . . Garrison Access . | . . . . . . . . . . . . . . . Data Cores Recovered 1 | . . . . . . 1 . . . . . . . . Used . | . . . . . . . . . . . . . . . Hacking Detections 49 | . 1 . . . 2 4 6 12 5 6 1 . 5 7 Full Trace Events 3 | . . . . . . . . 1 . . . . . 2 Feedback Events . | . . . . . . . . . . . . . . . Feedback Blocked 2 | . . . . . . . . . . . . . . 2 Robot Schematics Acquired . | . . . . . . . . . . . . . . . Robots Built . | . . . . . . . . . . . . . . . Authchips . | . . . . . . . . . . . . . . . Time . | . . . . . . . . . . . . . . . Total Robot Build Rating . | . . . . . . . . . . . . . . . Part Schematics Acquired 1 | . . . . . . . 1 . . . . . . . Parts Built 1 | . . . . . . . . . 1 . . . . . Authchips 1 | . . . . . . . . . 1 . . . . . Time 67 | . . . . . . . . . 67 . . . . . Total Part Build Rating 4 | . . . . . . . . . 4 . . . . . Parts Repaired 8 | . . . . . 2 . . 3 1 1 . . . 1 Time 314 | . . . . . 52 26 . 140 29 44 . . . 23 Parts Recycled . | . . . . . . . . . . . . . . . Recycled Matter . | . . . . . . . . . . . . . . . Retrieved Matter . | . . . . . . . . . . . . . . . Retrieved Components . | . . . . . . . . . . . . . . . Parts Scanalyzed 1 | . . . . . . . 1 . . . . . . . Part Schematics Acquired 1 | . . . . . . . 1 . . . . . . . Parts Damaged 1 | . . . . . . . 1 . . . . . . . Bothacking | -11 -10 -10 -10 -9 -8 -8 -7 -6 -5 -4 -3 -3 -2 -1 ------------ Run | Yrd Mat Min Exi Min Mat Sto Fac Fac Fac Fac Res DSF Res Acc Used RIF Installer . | . . . . . . . . . . . . . . . Robots Hacked . | . . . . . . . . . . . . . . . Non-combat . | . . . . . . . . . . . . . . . Combat . | . . . . . . . . . . . . . . . Robot Hacks Applied . | . . . . . . . . . . . . . . . Relay Couplers Released . | . . . . . . . . . . . . . . . Fabnet Peak Effective % . | . . . . . . . . . . . . . . . Robots Rewired 1 | . . . . . . 1 . . . . . . . . Allies Hacked . | . . . . . . . . . . . . . . . Hacks Repelled . | . . . . . . . . . . . . . . . Allies | -11 -10 -10 -10 -9 -8 -8 -7 -6 -5 -4 -3 -3 -2 -1 -------- Run | Yrd Mat Min Exi Min Mat Sto Fac Fac Fac Fac Res DSF Res Acc Total Allies 19 | . . . . 3 . 12 . 2 . . . . 1 1 Largest Group 11 | . . . . 3 3 11 . 2 . . . . 1 1 Highest-Rated Group 219 | . . . . 40 40 219 . 52 . . . . 45 45 Highest-Rated Ally 45 | . . . . 16 16 31 . 26 . . . . 45 45 Total Orders 2 | . . . . . . 2 . . . . . . . . ROAM 1 | . . . . . . 1 . . . . . . . . FOLLOW 1 | . . . . . . 1 . . . . . . . . Ally Attacks 106 | . . . . . 31 75 . . . . . . . . Total Damage 1233 | . . . . . 275 958 . . . . . . . . Kills 10 | . . . . . 3 7 . . . . . . . . Allies Corrupted . | . . . . . . . . . . . . . . . Allies Melted . | . . . . . . . . . . . . . . . Intel | -11 -10 -10 -10 -9 -8 -8 -7 -6 -5 -4 -3 -3 -2 -1 ------- Run | Yrd Mat Min Exi Min Mat Sto Fac Fac Fac Fac Res DSF Res Acc Active Infowar (turns) 1182 | . . . . . 53 9 327 121 27 7 . 7 127 504 Jamming 507 | . . . . . . . . . . 2 . 1 50 454 ECM 723 | . . . . . 53 9 327 121 27 5 . 6 77 98 Robot Analysis Total . | . . . . . . . . . . . . . . . Derelict Logs Recovered 1 | . . . . 1 . . . . . . . . . . Drone Launches . | . . . . . . . . . . . . . . . Drone Recoveries . | . . . . . . . . . . . . . . . Exploration | -11 -10 -10 -10 -9 -8 -8 -7 -6 -5 -4 -3 -3 -2 -1 ------------- Run | Yrd Mat Min Exi Min Mat Sto Fac Fac Fac Fac Res DSF Res Acc Turns Passed 5060 | 25 97 72 273 698 418 419 539 722 510 471 17 43 212 544 Spaces Moved 8340 | 37 108 73 218 356 513 554 1041 1296 946 1223 60 68 384 1463 Core 701 | 37 52 26 218 356 . . . . . . . . . 12 Treads . | . . . . . . . . . . . . . . . Legs . | . . . . . . . . . . . . . . . Wheels . | . . . . . . . . . . . . . . . Hover 103 | . 56 47 . . . . . . . . . . . . Flight 7536 | . . . . . 513 554 1041 1296 946 1223 60 68 384 1451 Fastest Speed 12 | 50 50 100 100 150 50 39 39 34 26 19 22 15 15 12 Average Speed 44 | 50 75 100 122 194 58 40 39 38 28 25 25 38 21 26 Slowest Speed 200 | 50 100 100 150 200 70 50 39 39 34 26 26 189 26 200 Overloaded Moves 133 | . . . . . . . . . . 2 . 31 10 90 Propulsion Burnouts . | . . . . . . . . . . . . . . . Robots Hopped 43 | . . . . . 3 3 4 8 2 3 . . 2 18 Potential Cave-ins . | . . . . . . . . . . . . . . . Cave-ins Triggered . | . . . . . . . . . . . . . . . Exploration Rate (%) 34 | 2 24 16 60 74 38 65 28 37 24 37 2 54 10 45 Regions Visited 14 Branch Regions 4 Pre-discovered Areas 2 | . . . 1 1 . . . . . . . . . . Known Exits Taken 6 | . . . . . 1 . 1 1 . 1 1 . 1 . Unknown Exits Taken 7 | 1 1 1 1 1 . 1 . . 1 . . . . . Scrap Searched 1 | . . . . 1 . . . . . . . . . . Spaces Dug 108 | . . . . . 14 12 12 15 13 17 . . 13 12 Terrain Destroyed 271 | . . . . . 14 12 12 77 85 46 . . 13 12 Melee 108 | . . . . . 14 12 12 15 13 17 . . 13 12 Projectile . | . . . . . . . . . . . . . . . AOE 163 | . . . . . . . . 62 72 29 . . . . Terrain Rammed . | . . . . . . . . . . . . . . . Walls Destroyed . | . . . . . . . . . . . . . . . Machines Disabled . | . . . . . . . . . . . . . . . Actions | -11 -10 -10 -10 -9 -8 -8 -7 -6 -5 -4 -3 -3 -2 -1 --------- Run | Yrd Mat Min Exi Min Mat Sto Fac Fac Fac Fac Res DSF Res Acc Total 9283 | 42 119 72 226 361 587 701 1123 1434 1126 1308 61 80 485 1558 Wait 583 | . . . . 4 43 116 36 80 132 31 . 1 85 55 Move 8244 | 36 107 72 217 355 506 547 1032 1280 941 1216 59 67 380 1429 Hop 39 | . . . . . 3 3 4 7 2 3 . . 1 16 Pick Up 67 | 5 4 . 3 1 7 1 10 8 5 6 . 4 1 12 Fast Attach 9 | . 1 . . . . . 2 . 2 1 . 1 . 2 Attach 32 | 1 1 . 1 1 3 2 . 4 3 3 1 . 2 10 Detach . | . . . . . . . . . . . . . . . Swap . | . . . . . . . . . . . . . . . Drop 28 | . 2 . 5 . 1 . 4 4 2 3 1 4 . 2 Fire 37 | . 4 . . . 9 1 . 9 11 3 . . . . Melee 233 | . . . . . 15 29 31 42 28 42 . 3 16 27 Ram 1 | . . . . . . . . . . . . . . 1 Kick . | . . . . . . . . . . . . . . . Crush . | . . . . . . . . . . . . . . . Escape Stasis 8 | . . . . . . . 4 . . . . . . 4 Rewire 2 | . . . . . . 2 . . . . . . . . Trap . | . . . . . . . . . . . . . . . Miscellaneous . | . . . . . . . . . . . . . . . Route ------- -11/Scrapyard -10/Materials (discovered 2 exits: [*Min x2]) -10/Mines -10/Exiles -9/Mines -8/Materials -8/Storage -7/Factory (discovered 5 exits: *Fac x4 / [*Low]) -6/Factory (discovered 8 exits: *Fac x4 / *Low x2 / Ext x2) -5/Factory (discovered 2 exits: *Fac / [*Upp]) -4/Factory (discovered 4 exits: *Res x4) -3/Research -3/DSF -2/Research (discovered 4 exits: *Acc x3 / [*Tes]) -1/Access (discovered 1 exit: Sur) History --------- Turn | Location | Event 7 | -11/Scrapyard | Discovered new exit (range 15) 26 | -11/Scrapyard | Entered Materials 96 | -10/Materials | Discovered new exit (range 12) 119 | -10/Materials | Discovered new exit (range 16) 123 | -10/Materials | Entered Mines 128 | -10/Mines | Assembled infested the area 191 | -10/Mines | Deemed a non-threat by the Exiles lab entrance 191 | -10/Mines | Discovered new exit (range 5) 195 | -10/Mines | Entered Exiles 205 | -10/Exiles | Lost 3 parts (1p1n1u) 226 | -10/Exiles | Met 8R-AWN 242 | -10/Exiles | Met EX-HEX 272 | -10/Exiles | Met EX-BIN 286 | -10/Exiles | Aligned with FarCom system 287 | -10/Exiles | Given EX-Vault access code 311 | -10/Exiles | Opened EX-Vault 315 | -10/Exiles | Build established: Mutant 319 | -10/Exiles | Found Flying Fortress v7 350 | -10/Exiles | Warned to stay clear of 0b10 Research branches 399 | -10/Exiles | Met EX-DEC 407 | -10/Exiles | Learned location of Zion (-7) 450 | -10/Exiles | Discovered new exit (range 14) 468 | -10/Exiles | Left Exiles lab with Flying Fortress v7 468 | -10/Exiles | Entered Mines 480 | -9/Mines | Learned Materials trap positions 489 | -9/Mines | Met a Derelict bent on vengeance 588 | -9/Mines | Assisted by bots powering up and referring to "LRC-V3" 692 | -9/Mines | Joined a pair of Derelicts in attacking an 0b10 outpost 865 | -9/Mines | Learned location of Storage (-8) 1152 | -9/Mines | Discovered new exit (range 5) 1166 | -9/Mines | Entered Materials 1166 | -8/Materials | Accompanied by 3 allies 1166 | -8/Materials | Evolved 4 slots: Propulsion x3, Utility x1 1167 | -8/Materials | Loaded intel: 23 trap records 1255 | -8/Materials | Discovered new exit (range 16) 1369 | -8/Materials | Repaired Lgt. Treads 1395 | -8/Materials | Repaired Assault Rifle? 1507 | -8/Materials | Identified exit to Storage 1584 | -8/Materials | Entered Storage 1584 | -8/Storage | Accompanied by 1 ally 1795 | -8/Storage | Assisted by bots powering up and referring to "LRC-V3" 1946 | -8/Storage | Discovered new exit (range 15) 1962 | -8/Storage | Met a pair of Derelict thieves 1978 | -8/Storage | Garrison activated, responded to threat 2003 | -8/Storage | Entered Factory 2003 | -7/Factory | Evolved 2 slots: Propulsion x1, Utility x1 2030 | -7/Factory | Lost 10 allies 2244 | -7/Factory | Identified exit to Factory 2245 | -7/Factory | Discovered new exit (range 11) 2542 | -7/Factory | Entered another Factory area 2542 | -6/Factory | Evolved 2 slots: Propulsion x1, Utility x1 2663 | -6/Factory | Repaired Lgt. Assault Rifle 2689 | -6/Factory | Repaired ECM Suite 2709 | -6/Factory | Identified exit to Factory 2853 | -6/Factory | Discovered new exit (range 3) 2950 | -6/Factory | Identified exit to Lower Caves 2950 | -6/Factory | Identified exit to Extension 3177 | -6/Factory | Repaired Faulty Cld. VTOL Module 3264 | -6/Factory | Entered another Factory area 3264 | -5/Factory | Evolved 2 slots: Propulsion x1, Utility x1 3293 | -5/Factory | Build established: Hacker-Mutant 3414 | -5/Factory | Repaired Broken Cld. VTOL Module? 3441 | -5/Factory | Fabricated Cld. VTOL Module (x1) 3669 | -5/Factory | Discovered new exit (range 12) 3680 | -5/Factory | Discovered new exit (range 16) 3718 | -5/Factory | Build established: Hacker-Sprinter 3774 | -5/Factory | Entered another Factory area 3774 | -4/Factory | Evolved 2 slots: Power x1, Utility x1 3843 | -4/Factory | Repaired Hvy. Missile Launcher? 3891 | -4/Factory | Discovered new exit (range 14) 4113 | -4/Factory | Identified exit to Research 4245 | -4/Factory | Entered Research 4245 | -3/Research | Evolved 2 slots: Propulsion x1, Utility x1 4261 | -3/Research | Identified exit to DSF 4262 | -3/Research | Entered DSF 4301 | -3/DSF | Additional patrols routed to DSF 4302 | -3/DSF | Discovered new exit (range 16) 4305 | -3/DSF | Entered Research 4305 | -2/Research | Evolved 2 slots: Utility x2 4344 | -2/Research | Identified exit to Access 4374 | -2/Research | Spotted B-90 Cyclops 4511 | -2/Research | Discovered new exit (range 9) 4517 | -2/Research | Entered Access 4517 | -1/Access | Evolved 2 slots: Utility x2 4634 | -1/Access | Build established: Wizard-Sprinter 4715 | -1/Access | Repaired Cld. VTOL Module 4798 | -1/Access | Identified exit to Surface 4905 | -1/Access | Spotted B-99 Colossus 5008 | -1/Access | Spotted B-99 Colossus 5008 | -1/Access | Spotted B-99 Colossus 5055 | -1/Access | Core integrity fell below 50% 5059 | -1/Access | Core integrity fell below 20% 5061 | -1/Access | Destroyed by G-73 Enforcer with Heavy Laser Last Messages --------------- 05057_ ALERT: Construction progress impeded, dispatching reinforcements to local area. 05057_ K-01 Serf collects debris. 05058_ Slug penetrates H-88 Terminator. 05058_ H-88 Terminator suffers critical hit (Destroy). 05058_ Slug penetrates Wall. 05059_ Penetrated by Slug. 05060_ Slug penetrates G-73 Enforcer. 05060_ G-73 Enforcer suffers critical hit (Destroy). 05060_ Penetrated by Slug. 05060_ Slug penetrates G-73 Enforcer. 05060_ Penetrated by Slug. 05060_ U-05 Engineer destroyed. 05060_ Slug penetrates G-73 Enforcer. 05060_ Slug penetrates H-88 Terminator. 05060_ H-88 Terminator suffers critical hit (Destroy). 05060_ Slug penetrates G-73 Enforcer. Map ----- +----------------------------------------------------+ | ??????????????????????# #?????????????????????? | | ??????????????????????# #?????????????????????? | | ??????????????????????# #?????????????????????# | | ??????????????????????# #?????????????????????# | | ??????????????????????# #????#####????????????# | | ??????????????????????# #???] ???????????+ | | ??????????????????????# #??? ?????????????# | | ?????????############## #?? ???# ###### | | ?????????#// !# #? ?????# " | | ?????????#// # #? " ?????# | | ?????????#// # # """ ????# ###### | | ?????????# # # """ ????# #?????# | | ?????????# # h% " " ???# ####### | | ?????????# ; !h # ?# #] # | | ?????????# ; k #????????????# # # | | ?????????# #g #????????????# # # | | ?????????# #h=% #????????????# # # | | ?????????# # g* #????????????# # # | | ?????????# #l #??????####### # # | | ?????????# #%g u#????? ## # # | | ?????????############## #????? ## # # | | ????????????????????? ;gggg# ??? ## +] # | | ??????????????????????# g h#""""" ## # # | | ??????????????????????# h #""""" ## # # | | ??????????????????????# !#""""" ## ####### | | ??????????????????????# @%#""""" # ###### | | ??????????????????????# =|#""""" # | | ??????????????????????#w + # " | | ??????????????????????# /# # ###### | | ?????????????????? ???# # ######????? | | ????????????######+#### # #?????????? | | ??????????? # #?????????? | | ??????????? #############?????????? | | ??????????? #?????????????????????? | | ????????!?? #?#########???????????? | | ??????????? BB#?# """" ????? | | ??????????? kBB#?# """" ????? | | ??????????? BB%### """" """????? | | ??????????? BB """" " ????? | | ??????????? """" " "